[Event "January 2 Early 2024"]
[Site "https://www.chess.com"]
[Date "2024.01.02"]
[Round "7"]
[White "Kohler, Aran"]
[Black "Goncalves, Davi Sulzbacher"]
[Result "0-1"]
[Board "118"]
[TimeControl "180+1"]
[WhiteFideId "1002856"]
[BlackFideId "2154510"]
[WhiteElo "2234"]
[BlackElo "2515"]
[WhiteTeam "NED"]
[BlackTeam "BRA"]
[WhiteClock "0:00:28"]
[BlackClock "0:01:22"]

1. Nf3 {[%clk 0:03:00]}  d5 {[%clk 0:02:59]} 2. d4 {[%clk 0:02:59]}  Bf5 {[%clk 0:02:58]} 3. Bf4 {[%clk 0:02:47]}  e6 {[%clk 0:02:57]} 4. e3 {[%clk 0:02:46]}  c5 {[%clk 0:02:53]} 5. c3 {[%clk 0:02:45]}  Qb6 {[%clk 0:02:52]} 6. Qb3 {[%clk 0:02:41]}  c4 {[%clk 0:02:52]} 7. Qxb6 {[%clk 0:02:39]}  axb6 {[%clk 0:02:53]} 8. a3 {[%clk 0:02:15]}  b5 {[%clk 0:02:50]} 9. Be2 {[%clk 0:02:15]}  b4 {[%clk 0:02:48]} 10. cxb4 {[%clk 0:02:14]}  Bxb4+ {[%clk 0:02:47]} 11. Nc3 {[%clk 0:02:14]}  Nc6 {[%clk 0:02:27]} 12. O-O {[%clk 0:02:13]}  Bxc3 {[%clk 0:02:21]} 13. bxc3 {[%clk 0:02:13]}  Nf6 {[%clk 0:02:21]} 14. Nd2 {[%clk 0:02:13]}  Ne4 {[%clk 0:02:20]} 15. Nxe4 {[%clk 0:02:07]}  Bxe4 {[%clk 0:02:21]} 16. f3 {[%clk 0:02:01]}  Bc2 {[%clk 0:02:21]} 17. Rfc1 {[%clk 0:01:56]}  Bb3 {[%clk 0:02:20]} 18. e4 {[%clk 0:01:54]}  Kd7 {[%clk 0:02:19]} 19. Kf2 {[%clk 0:01:49]}  Ra4 {[%clk 0:02:14]} 20. Bd1 {[%clk 0:01:46]}  Rha8 {[%clk 0:02:04]} 21. exd5 {[%clk 0:01:31]}  exd5 {[%clk 0:02:02]} 22. Rcb1 {[%clk 0:00:59]}  Rxa3 {[%clk 0:01:58]} 23. Rxa3 {[%clk 0:00:55]}  Rxa3 {[%clk 0:01:59]} 24. Be2 {[%clk 0:00:45]}  b5 {[%clk 0:01:46]} 25. Bc1 {[%clk 0:00:45]}  Ra2 {[%clk 0:01:45]} 26. Ke3 {[%clk 0:00:46]}  b4 {[%clk 0:01:38]} 27. Bd2 {[%clk 0:00:43]}  Bc2 {[%clk 0:01:32]} 28. cxb4 {[%clk 0:00:41]}  Bxb1 {[%clk 0:01:30]} 29. b5 {[%clk 0:00:39]}  Ra3+ {[%clk 0:01:29]} 30. Kf4 {[%clk 0:00:36]}  Nxd4 {[%clk 0:01:29]} 31. Bd1 {[%clk 0:00:35]}  Nxb5 {[%clk 0:01:28]} 32. Bb4 {[%clk 0:00:34]}  Rb3 {[%clk 0:01:26]} 33. Bxb3 {[%clk 0:00:32]}  cxb3 {[%clk 0:01:26]} 34. Bf8 {[%clk 0:00:30]}  b2 {[%clk 0:01:22]} 35. Bxg7 {[%clk 0:00:28]}  d4 {[%clk 0:01:22]} 0-1

[Event "January 2 Early 2024"]
[Site "https://www.chess.com"]
[Date "2024.01.02"]
[Round "7"]
[White "Adelman, Charles"]
[Black "xakevicius91"]
[Result "1-0"]
[Board "119"]
[TimeControl "180+1"]
[WhiteFideId "2003597"]
[WhiteElo "2220"]
[BlackElo "2515"]
[WhiteTeam "USA"]
[WhiteClock "0:00:56"]
[BlackClock "0:00:54"]

1. Nf3 {[%clk 0:03:00]}  Nf6 {[%clk 0:02:59]} 2. c4 {[%clk 0:03:00]}  c5 {[%clk 0:02:59]} 3. g3 {[%clk 0:03:01]}  b6 {[%clk 0:03:00]} 4. Bg2 {[%clk 0:03:02]}  Bb7 {[%clk 0:02:59]} 5. O-O {[%clk 0:03:02]}  e6 {[%clk 0:03:00]} 6. Nc3 {[%clk 0:03:01]}  d6 {[%clk 0:03:00]} 7. d4 {[%clk 0:03:01]}  cxd4 {[%clk 0:03:00]} 8. Qxd4 {[%clk 0:03:01]}  Be7 {[%clk 0:03:01]} 9. b3 {[%clk 0:03:01]}  O-O {[%clk 0:02:51]} 10. Bb2 {[%clk 0:03:01]}  a6 {[%clk 0:02:50]} 11. Rfe1 {[%clk 0:03:01]}  Nbd7 {[%clk 0:02:50]} 12. e4 {[%clk 0:03:01]}  Qc7 {[%clk 0:02:50]} 13. Rad1 {[%clk 0:03:01]}  Rfd8 {[%clk 0:02:46]} 14. h3 {[%clk 0:02:59]}  Rac8 {[%clk 0:02:43]} 15. Qe3 {[%clk 0:02:58]}  Ne5 {[%clk 0:02:30]} 16. Nd4 {[%clk 0:02:55]}  Bf8 {[%clk 0:02:23]} 17. f4 {[%clk 0:02:55]}  Ng6 {[%clk 0:02:22]} 18. f5 {[%clk 0:02:49]}  exf5 {[%clk 0:02:17]} 19. exf5 {[%clk 0:02:41]}  Ne5 {[%clk 0:02:14]} 20. Nd5 {[%clk 0:02:32]}  Bxd5 {[%clk 0:02:11]} 21. cxd5 {[%clk 0:02:30]}  Qd7 {[%clk 0:02:07]} 22. g4 {[%clk 0:02:21]}  h6 {[%clk 0:01:57]} 23. Nc6 {[%clk 0:02:21]}  Re8 {[%clk 0:01:47]} 24. Qf2 {[%clk 0:02:14]}  b5 {[%clk 0:01:41]} 25. Kh1 {[%clk 0:02:10]}  Nh7 {[%clk 0:01:24]} 26. Nxe5 {[%clk 0:02:08]}  dxe5 {[%clk 0:01:25]} 27. Bxe5 {[%clk 0:02:01]}  Ng5 {[%clk 0:01:16]} 28. d6 {[%clk 0:01:57]}  f6 {[%clk 0:01:12]} 29. Bg3 {[%clk 0:01:56]}  Kh8 {[%clk 0:01:08]} 30. Rxe8 {[%clk 0:01:49]}  Rxe8 {[%clk 0:01:08]} 31. Qb6 {[%clk 0:01:45]}  Rd8 {[%clk 0:01:01]} 32. Qc6 {[%clk 0:01:38]}  Nf7 {[%clk 0:01:01]} 33. Qxd7 {[%clk 0:01:36]}  Rxd7 {[%clk 0:01:01]} 34. Bc6 {[%clk 0:01:36]}  Rd8 {[%clk 0:01:02]} 35. d7 {[%clk 0:01:35]}  Ne5 {[%clk 0:01:02]} 36. Bxe5 {[%clk 0:01:30]}  fxe5 {[%clk 0:01:03]} 37. Rd5 {[%clk 0:01:30]}  Be7 {[%clk 0:00:58]} 38. Rxe5 {[%clk 0:01:29]}  Bf6 {[%clk 0:00:59]} 39. Re8+ {[%clk 0:01:29]}  Kh7 {[%clk 0:00:59]} 40. Kg2 {[%clk 0:01:26]}  h5 {[%clk 0:01:00]} 41. Kf3 {[%clk 0:01:25]}  Kh6 {[%clk 0:01:00]} 42. Rxd8 {[%clk 0:01:23]}  Bxd8 {[%clk 0:00:59]} 43. Ke4 {[%clk 0:01:22]}  hxg4 {[%clk 0:00:57]} 44. hxg4 {[%clk 0:01:22]}  Kg5 {[%clk 0:00:58]} 45. Ke5 {[%clk 0:01:19]}  Kxg4 {[%clk 0:00:59]} 46. Ke6 {[%clk 0:01:19]}  Kf4 {[%clk 0:00:57]} 47. Bb7 {[%clk 0:01:08]}  a5 {[%clk 0:00:57]} 48. Bc6 {[%clk 0:01:08]}  b4 {[%clk 0:00:57]} 49. Kf7 {[%clk 0:01:01]}  Kxf5 {[%clk 0:00:55]} 50. Ke8 {[%clk 0:00:59]}  Bb6 {[%clk 0:00:47]} 51. d8=Q {[%clk 0:00:58]}  Bxd8 {[%clk 0:00:48]} 52. Kxd8 {[%clk 0:00:59]}  g5 {[%clk 0:00:49]} 53. Kc7 {[%clk 0:00:59]}  Ke5 {[%clk 0:00:49]} 54. Kb6 {[%clk 0:00:59]}  Kd4 {[%clk 0:00:50]} 55. Kxa5 {[%clk 0:00:58]}  Kc3 {[%clk 0:00:51]} 56. Ka4 {[%clk 0:00:58]}  g4 {[%clk 0:00:51]} 57. Bg2 {[%clk 0:00:57]}  g3 {[%clk 0:00:51]} 58. Bh1 {[%clk 0:00:57]}  Kb2 {[%clk 0:00:50]} 59. Kxb4 {[%clk 0:00:57]}  Kxa2 {[%clk 0:00:51]} 60. Ka4 {[%clk 0:00:57]}  Kb2 {[%clk 0:00:52]} 61. b4 {[%clk 0:00:57]}  Kc2 {[%clk 0:00:52]} 62. b5 {[%clk 0:00:57]}  Kc3 {[%clk 0:00:53]} 63. b6 {[%clk 0:00:58]}  Kd4 {[%clk 0:00:54]} 64. b7 {[%clk 0:00:58]}  g2 {[%clk 0:00:54]} 65. Bxg2 {[%clk 0:00:57]}  Kc5 {[%clk 0:00:54]} 66. b8=Q {[%clk 0:00:56]} 1-0

[Event "January 2 Early 2024"]
[Site "https://www.chess.com"]
[Date "2024.01.02"]
[Round "7"]
[White "Sanchez Alvares, Kelvin Antonio"]
[Black "Niedbala, Bartlomiej"]
[Result "0-1"]
[Board "126"]
[TimeControl "180+1"]
[WhiteFideId "3906680"]
[BlackFideId "21834008"]
[WhiteElo "2461"]
[BlackElo "2623"]
[WhiteTeam "VEN"]
[BlackTeam "POL"]
[WhiteClock "0:00:02"]
[BlackClock "0:00:17"]

1. e4 {[%clk 0:03:00]}  c6 {[%clk 0:02:57]} 2. d4 {[%clk 0:03:00]}  d5 {[%clk 0:02:57]} 3. exd5 {[%clk 0:03:01]}  cxd5 {[%clk 0:02:58]} 4. c4 {[%clk 0:03:02]}  Nf6 {[%clk 0:02:57]} 5. Nc3 {[%clk 0:03:03]}  g6 {[%clk 0:02:56]} 6. Bf4 {[%clk 0:03:02]}  Nc6 {[%clk 0:02:55]} 7. h3 {[%clk 0:03:01]}  Bg7 {[%clk 0:02:55]} 8. Nf3 {[%clk 0:03:01]}  O-O {[%clk 0:02:56]} 9. c5 {[%clk 0:03:01]}  Ne4 {[%clk 0:02:55]} 10. Bd3 {[%clk 0:02:57]}  Nxc3 {[%clk 0:02:43]} 11. bxc3 {[%clk 0:02:58]}  f6 {[%clk 0:02:44]} 12. Bg3 {[%clk 0:02:36]}  e5 {[%clk 0:02:43]} 13. Bb5 {[%clk 0:02:32]}  e4 {[%clk 0:02:21]} 14. Nd2 {[%clk 0:02:31]}  f5 {[%clk 0:02:20]} 15. Bd6 {[%clk 0:02:31]}  Re8 {[%clk 0:02:20]} 16. Qb3 {[%clk 0:02:29]}  Be6 {[%clk 0:02:20]} 17. O-O {[%clk 0:02:25]}  Bh6 {[%clk 0:02:11]} 18. Rad1 {[%clk 0:02:21]}  f4 {[%clk 0:02:07]} 19. Bxc6 {[%clk 0:01:36]}  bxc6 {[%clk 0:02:02]} 20. Qb7 {[%clk 0:01:31]}  Rc8 {[%clk 0:01:47]} 21. Be5 {[%clk 0:01:24]}  Re7 {[%clk 0:01:42]} 22. Qa6 {[%clk 0:01:18]}  Rf7 {[%clk 0:01:41]} 23. Nb3 {[%clk 0:01:12]}  f3 {[%clk 0:01:39]} 24. Bg3 {[%clk 0:01:11]}  fxg2 {[%clk 0:01:37]} 25. Kxg2 {[%clk 0:01:12]}  Bf4 {[%clk 0:01:26]} 26. Na5 {[%clk 0:01:10]}  Qd7 {[%clk 0:01:24]} 27. Rh1 {[%clk 0:01:08]}  e3 {[%clk 0:00:55]} 28. fxe3 {[%clk 0:01:02]}  Bxg3 {[%clk 0:00:53]} 29. Kxg3 {[%clk 0:01:02]}  Rcf8 {[%clk 0:00:47]} 30. Qxc6 {[%clk 0:00:52]}  Rf3+ {[%clk 0:00:43]} 31. Kg2 {[%clk 0:00:52]}  Qe7 {[%clk 0:00:39]} 32. h4 {[%clk 0:00:43]}  Qf6 {[%clk 0:00:25]} 33. Rh2 {[%clk 0:00:07]}  Rf2+ {[%clk 0:00:17]} 34. Kh1 {[%clk 0:00:02]}  Qf3+ {[%clk 0:00:17]} 0-1

[Event "January 2 Early 2024"]
[Site "https://www.chess.com"]
[Date "2024.01.02"]
[Round "7"]
[White "Morales Garcia, Sergio Joshafatt"]
[Black "Gontcharov, Vladislav"]
[Result "0-1"]
[Board "127"]
[TimeControl "180+1"]
[WhiteFideId "5106249"]
[BlackFideId "4123492"]
[WhiteElo "2441"]
[BlackElo "2622"]
[WhiteTeam "MEX"]
[BlackTeam "RUS"]
[WhiteClock "0:00:03"]
[BlackClock "0:00:20"]

1. d4 {[%clk 0:03:00]}  Nf6 {[%clk 0:02:59]} 2. c4 {[%clk 0:02:59]}  c5 {[%clk 0:02:59]} 3. d5 {[%clk 0:02:59]}  e6 {[%clk 0:02:59]} 4. Nc3 {[%clk 0:02:59]}  exd5 {[%clk 0:02:59]} 5. cxd5 {[%clk 0:02:59]}  d6 {[%clk 0:03:00]} 6. e4 {[%clk 0:02:59]}  g6 {[%clk 0:03:00]} 7. Nge2 {[%clk 0:02:59]}  Bg7 {[%clk 0:02:58]} 8. Ng3 {[%clk 0:02:59]}  O-O {[%clk 0:02:57]} 9. Bd3 {[%clk 0:02:59]}  Re8 {[%clk 0:02:41]} 10. O-O {[%clk 0:02:59]}  Nbd7 {[%clk 0:02:41]} 11. Re1 {[%clk 0:02:54]}  a6 {[%clk 0:02:39]} 12. a4 {[%clk 0:02:53]}  Rb8 {[%clk 0:02:39]} 13. a5 {[%clk 0:02:49]}  b5 {[%clk 0:02:38]} 14. axb6 {[%clk 0:02:48]}  Rxb6 {[%clk 0:02:38]} 15. Ra2 {[%clk 0:02:36]}  Qc7 {[%clk 0:02:07]} 16. Bf4 {[%clk 0:02:26]}  Rb4 {[%clk 0:02:05]} 17. Qa1 {[%clk 0:02:21]}  Ng4 {[%clk 0:01:52]} 18. Bxa6 {[%clk 0:02:12]}  Bxa6 {[%clk 0:01:48]} 19. Rxa6 {[%clk 0:02:13]}  Nge5 {[%clk 0:01:48]} 20. Be3 {[%clk 0:02:03]}  Nc4 {[%clk 0:01:43]} 21. Ra7 {[%clk 0:01:59]}  Qc8 {[%clk 0:01:37]} 22. Qa6 {[%clk 0:01:55]}  Qxa6 {[%clk 0:01:28]} 23. Rxa6 {[%clk 0:01:56]}  Rxb2 {[%clk 0:01:27]} 24. Na4 {[%clk 0:01:52]}  Rb4 {[%clk 0:01:19]} 25. Bf4 {[%clk 0:01:36]}  Nde5 {[%clk 0:01:12]} 26. Rd1 {[%clk 0:01:20]}  Reb8 {[%clk 0:00:58]} 27. h3 {[%clk 0:01:18]}  h5 {[%clk 0:00:57]} 28. Kh2 {[%clk 0:01:08]}  h4 {[%clk 0:00:56]} 29. Nf1 {[%clk 0:01:07]}  Bf6 {[%clk 0:00:54]} 30. Ne3 {[%clk 0:01:04]}  g5 {[%clk 0:00:52]} 31. Nxc4 {[%clk 0:00:56]}  Nxc4 {[%clk 0:00:51]} 32. Bd2 {[%clk 0:00:35]}  Nxd2 {[%clk 0:00:45]} 33. Rxd2 {[%clk 0:00:36]}  Be5+ {[%clk 0:00:45]} 34. g3 {[%clk 0:00:36]}  Rb3 {[%clk 0:00:33]} 35. Kg2 {[%clk 0:00:19]}  hxg3 {[%clk 0:00:32]} 36. Nxc5 {[%clk 0:00:11]}  dxc5 {[%clk 0:00:30]} 37. d6 {[%clk 0:00:12]}  gxf2 {[%clk 0:00:27]} 38. d7 {[%clk 0:00:11]}  Rd8 {[%clk 0:00:26]} 39. Rc6 {[%clk 0:00:10]}  Kf8 {[%clk 0:00:23]} 40. Rxc5 {[%clk 0:00:08]}  f6 {[%clk 0:00:23]} 41. Rc8 {[%clk 0:00:07]}  Ke7 {[%clk 0:00:23]} 42. Rxd8 {[%clk 0:00:06]}  Kxd8 {[%clk 0:00:21]} 43. Kxf2 {[%clk 0:00:03]}  Rxh3 {[%clk 0:00:20]} 0-1

[Event "January 2 Early 2024"]
[Site "https://www.chess.com"]
[Date "2024.01.02"]
[Round "7"]
[White "Grave, Jacob Templen"]
[Black "Ahmad, Khagan"]
[Result "1-0"]
[Board "131"]
[TimeControl "180+1"]
[WhiteFideId "1542656"]
[BlackFideId "13431552"]
[WhiteElo "2406"]
[BlackElo "2531"]
[WhiteTeam "NOR"]
[BlackTeam "AZE"]
[WhiteClock "0:00:04"]
[BlackClock "0:00:00"]

1. e4 {[%clk 0:03:00]}  e5 {[%clk 0:02:56]} 2. Nf3 {[%clk 0:02:56]}  Nc6 {[%clk 0:02:55]} 3. Bb5 {[%clk 0:02:52]}  a6 {[%clk 0:02:52]} 4. Ba4 {[%clk 0:02:51]}  Nf6 {[%clk 0:02:52]} 5. O-O {[%clk 0:02:51]}  b5 {[%clk 0:02:46]} 6. Bb3 {[%clk 0:02:49]}  Bc5 {[%clk 0:02:47]} 7. c3 {[%clk 0:02:48]}  d6 {[%clk 0:02:28]} 8. d4 {[%clk 0:02:48]}  Bb6 {[%clk 0:02:28]} 9. h3 {[%clk 0:02:36]}  O-O {[%clk 0:02:14]} 10. a4 {[%clk 0:02:29]}  Rb8 {[%clk 0:02:13]} 11. Re1 {[%clk 0:02:21]}  h6 {[%clk 0:02:03]} 12. Be3 {[%clk 0:02:15]}  exd4 {[%clk 0:01:51]} 13. cxd4 {[%clk 0:02:00]}  Na5 {[%clk 0:01:51]} 14. Bc2 {[%clk 0:01:56]}  Bb7 {[%clk 0:01:23]} 15. Nbd2 {[%clk 0:01:44]}  Re8 {[%clk 0:01:09]} 16. axb5 {[%clk 0:01:35]}  axb5 {[%clk 0:01:06]} 17. d5 {[%clk 0:01:30]}  Bxe3 {[%clk 0:00:59]} 18. Rxe3 {[%clk 0:01:31]}  c5 {[%clk 0:01:00]} 19. dxc6 {[%clk 0:01:24]}  Nxc6 {[%clk 0:00:52]} 20. Bb3 {[%clk 0:01:11]}  Na5 {[%clk 0:00:44]} 21. Bc2 {[%clk 0:00:42]}  Nc6 {[%clk 0:00:26]} 22. Bb3 {[%clk 0:00:33]}  Nb4 {[%clk 0:00:25]} 23. Nd4 {[%clk 0:00:30]}  Nxe4 {[%clk 0:00:20]} 24. Nxe4 {[%clk 0:00:29]}  Rxe4 {[%clk 0:00:20]} 25. Rxe4 {[%clk 0:00:29]}  Bxe4 {[%clk 0:00:20]} 26. Qe1 {[%clk 0:00:28]}  Ra8 {[%clk 0:00:06]} 27. Rxa8 {[%clk 0:00:25]}  Qxa8 {[%clk 0:00:07]} 28. f3 {[%clk 0:00:12]}  Nd3 {[%clk 0:00:03]} 29. Qxe4 {[%clk 0:00:11]}  Qa1+ {[%clk 0:00:04]} 30. Kh2 {[%clk 0:00:11]}  Nf2 {[%clk 0:00:04]} 31. Qe8+ {[%clk 0:00:08]}  Kh7 {[%clk 0:00:04]} 32. Bc2+ {[%clk 0:00:08]}  g6 {[%clk 0:00:03]} 33. Qxf7+ {[%clk 0:00:08]}  Kh8 {[%clk 0:00:04]} 34. Qe8+ {[%clk 0:00:07]}  Kg7 {[%clk 0:00:03]} 35. Qxg6+ {[%clk 0:00:05]}  Kf8 {[%clk 0:00:03]} 36. Qf6+ {[%clk 0:00:05]}  Ke8 {[%clk 0:00:04]} 37. Bg6+ {[%clk 0:00:03]}  Kd7 {[%clk 0:00:04]} 38. Bf5+ {[%clk 0:00:04]}  Kc7 {[%clk 0:00:04]} 39. Qe7+ {[%clk 0:00:04]}  Kb6 {[%clk 0:00:03]} 40. Qxd6+ {[%clk 0:00:05]}  Ka7 {[%clk 0:00:01]} 41. Nxb5+ {[%clk 0:00:03]}  Kb7 {[%clk 0:00:01]} 42. Qc7+ {[%clk 0:00:04]}  Ka6 {[%clk 0:00:01]} 43. Qa7+ {[%clk 0:00:04]}  Kxb5 {[%clk 0:00:01]} 44. Qxa1 {[%clk 0:00:04]}  Kb4 {[%clk 0:00:00]} 45. Qe1+ {[%clk 0:00:04]} 1-0

[Event "January 2 Early 2024"]
[Site "https://www.chess.com"]
[Date "2024.01.02"]
[Round "7"]
[White "Topalov, Aleksandar"]
[Black "Tifferet, Shakked"]
[Result "1/2-1/2"]
[Board "132"]
[TimeControl "180+1"]
[WhiteFideId "925659"]
[BlackFideId "2811529"]
[WhiteElo "2401"]
[BlackElo "2523"]
[WhiteTeam "SRB"]
[BlackTeam "ISR"]
[WhiteClock "0:00:15"]
[BlackClock "0:00:03"]

1. b3 {[%clk 0:02:59]}  g6 {[%clk 0:03:00]} 2. Bb2 {[%clk 0:02:57]}  Nf6 {[%clk 0:03:01]} 3. Bxf6 {[%clk 0:02:57]}  exf6 {[%clk 0:03:02]} 4. c4 {[%clk 0:02:57]}  d5 {[%clk 0:03:02]} 5. cxd5 {[%clk 0:02:57]}  Qxd5 {[%clk 0:03:03]} 6. e3 {[%clk 0:02:58]}  Qa5 {[%clk 0:03:02]} 7. Nf3 {[%clk 0:02:55]}  Nc6 {[%clk 0:02:59]} 8. Be2 {[%clk 0:02:55]}  f5 {[%clk 0:02:57]} 9. Nc3 {[%clk 0:02:54]}  Ba3 {[%clk 0:02:55]} 10. O-O {[%clk 0:02:48]}  Bb2 {[%clk 0:02:47]} 11. Rb1 {[%clk 0:02:47]}  Bxc3 {[%clk 0:02:47]} 12. dxc3 {[%clk 0:02:46]}  Qxc3 {[%clk 0:02:41]} 13. Rc1 {[%clk 0:02:42]}  Qf6 {[%clk 0:02:41]} 14. Bb5 {[%clk 0:02:38]}  Bd7 {[%clk 0:02:36]} 15. Nd4 {[%clk 0:02:28]}  Nxd4 {[%clk 0:02:31]} 16. Bxd7+ {[%clk 0:02:28]}  Kxd7 {[%clk 0:02:32]} 17. Rc4 {[%clk 0:02:24]}  Rad8 {[%clk 0:02:27]} 18. exd4 {[%clk 0:02:20]}  Kc8 {[%clk 0:02:25]} 19. Qc2 {[%clk 0:02:19]}  Rd7 {[%clk 0:02:26]} 20. Rc1 {[%clk 0:02:18]}  c6 {[%clk 0:02:21]} 21. b4 {[%clk 0:02:15]}  a6 {[%clk 0:02:04]} 22. a4 {[%clk 0:02:14]}  Rxd4 {[%clk 0:01:59]} 23. b5 {[%clk 0:02:14]}  axb5 {[%clk 0:01:55]} 24. axb5 {[%clk 0:02:14]}  Rxc4 {[%clk 0:01:52]} 25. Qxc4 {[%clk 0:02:14]}  Rd8 {[%clk 0:01:33]} 26. bxc6 {[%clk 0:02:13]}  bxc6 {[%clk 0:01:32]} 27. Qa6+ {[%clk 0:02:12]}  Kd7 {[%clk 0:01:29]} 28. Re1 {[%clk 0:01:35]}  Qd6 {[%clk 0:00:23]} 29. Qb7+ {[%clk 0:01:29]}  Qc7 {[%clk 0:00:23]} 30. Re7+ {[%clk 0:01:23]}  Kxe7 {[%clk 0:00:24]} 31. Qxc7+ {[%clk 0:01:23]}  Rd7 {[%clk 0:00:24]} 32. Qe5+ {[%clk 0:01:23]}  Kd8 {[%clk 0:00:20]} 33. h4 {[%clk 0:01:22]}  h5 {[%clk 0:00:20]} 34. Qb8+ {[%clk 0:01:19]}  Ke7 {[%clk 0:00:19]} 35. Qe5+ {[%clk 0:01:17]}  Kf8 {[%clk 0:00:16]} 36. Kh2 {[%clk 0:01:09]}  Rd5 {[%clk 0:00:14]} 37. Qc7 {[%clk 0:01:00]}  Rd4 {[%clk 0:00:11]} 38. g3 {[%clk 0:00:51]}  Rc4 {[%clk 0:00:11]} 39. Qd6+ {[%clk 0:00:43]}  Kg8 {[%clk 0:00:09]} 40. Qd3 {[%clk 0:00:42]}  Rc5 {[%clk 0:00:07]} 41. Qd8+ {[%clk 0:00:39]}  Kh7 {[%clk 0:00:07]} 42. Qe7 {[%clk 0:00:39]}  Rc2 {[%clk 0:00:06]} 43. Qxf7+ {[%clk 0:00:38]}  Kh6 {[%clk 0:00:07]} 44. Kg2 {[%clk 0:00:36]}  c5 {[%clk 0:00:07]} 45. Qb3 {[%clk 0:00:29]}  Re2 {[%clk 0:00:04]} 46. Kf1 {[%clk 0:00:25]}  Re4 {[%clk 0:00:03]} 47. f3 {[%clk 0:00:19]}  Re7 {[%clk 0:00:02]} 48. Qc3 {[%clk 0:00:18]}  Rc7 {[%clk 0:00:02]} 49. Qh8+ {[%clk 0:00:18]}  Rh7 {[%clk 0:00:03]} 50. Qc8 {[%clk 0:00:17]}  Rf7 {[%clk 0:00:02]} 51. Qxc5 {[%clk 0:00:16]}  Kg7 {[%clk 0:00:02]} 52. Qe5+ {[%clk 0:00:16]}  Rf6 {[%clk 0:00:03]} 53. Kf2 {[%clk 0:00:16]}  Kf7 {[%clk 0:00:04]} 54. Ke3 {[%clk 0:00:16]}  Re6 {[%clk 0:00:04]} 55. Kf4 {[%clk 0:00:17]}  Rxe5 {[%clk 0:00:03]} 56. Kxe5 {[%clk 0:00:17]}  Ke7 {[%clk 0:00:02]} 57. f4 {[%clk 0:00:17]}  Kf7 {[%clk 0:00:02]} 58. Kd6 {[%clk 0:00:17]}  Kf6 {[%clk 0:00:03]} 59. Kd7 {[%clk 0:00:17]}  Kf7 {[%clk 0:00:03]} 60. Kd6 {[%clk 0:00:18]}  Kf6 {[%clk 0:00:03]} 61. Kd5 {[%clk 0:00:17]}  Kf7 {[%clk 0:00:03]} 62. Kd6 {[%clk 0:00:15]} 1/2-1/2

[Event "January 2 Early 2024"]
[Site "https://www.chess.com"]
[Date "2024.01.02"]
[Round "7"]
[White "Fernandez Garcia, Gumersindo"]
[Black "Ljukin, Sergei"]
[Result "0-1"]
[Board "134"]
[TimeControl "180+1"]
[WhiteFideId "24516740"]
[BlackFideId "14102200"]
[WhiteElo "2372"]
[BlackElo "2518"]
[WhiteTeam "ESP"]
[BlackTeam "UKR"]
[WhiteClock "0:00:37"]
[BlackClock "0:01:30"]

1. e4 {[%clk 0:03:00]}  e6 {[%clk 0:02:59]} 2. d4 {[%clk 0:02:55]}  d5 {[%clk 0:02:59]} 3. Bd3 {[%clk 0:02:55]}  c5 {[%clk 0:02:57]} 4. exd5 {[%clk 0:02:53]}  exd5 {[%clk 0:02:57]} 5. dxc5 {[%clk 0:02:53]}  Bxc5 {[%clk 0:02:57]} 6. Nf3 {[%clk 0:02:54]}  Nf6 {[%clk 0:02:57]} 7. O-O {[%clk 0:02:54]}  O-O {[%clk 0:02:57]} 8. Bg5 {[%clk 0:02:54]}  h6 {[%clk 0:02:57]} 9. Bh4 {[%clk 0:02:54]}  g5 {[%clk 0:02:58]} 10. Bg3 {[%clk 0:02:54]}  Ne4 {[%clk 0:02:58]} 11. Nbd2 {[%clk 0:02:50]}  f5 {[%clk 0:02:59]} 12. Be5 {[%clk 0:02:35]}  Nc6 {[%clk 0:02:59]} 13. c4 {[%clk 0:02:32]}  g4 {[%clk 0:02:27]} 14. cxd5 {[%clk 0:02:14]}  gxf3 {[%clk 0:02:27]} 15. gxf3 {[%clk 0:01:36]}  Nxe5 {[%clk 0:02:24]} 16. Nxe4 {[%clk 0:01:29]}  fxe4 {[%clk 0:02:22]} 17. fxe4 {[%clk 0:01:20]}  Bg4 {[%clk 0:02:06]} 18. Qc2 {[%clk 0:01:12]}  Bf3 {[%clk 0:01:49]} 19. Rfd1 {[%clk 0:00:47]}  Qg5+ {[%clk 0:01:46]} 20. Kf1 {[%clk 0:00:47]}  Qg2+ {[%clk 0:01:42]} 21. Ke1 {[%clk 0:00:47]}  Qg1+ {[%clk 0:01:41]} 22. Bf1 {[%clk 0:00:46]}  Bxd1 {[%clk 0:01:35]} 23. Qxc5 {[%clk 0:00:37]}  Nd3+ {[%clk 0:01:30]} 0-1

[Event "January 2 Early 2024"]
[Site "https://www.chess.com"]
[Date "2024.01.02"]
[Round "7"]
[White "Chitre Arush"]
[Black "Poddubnyi, Viktor"]
[Result "1-0"]
[Board "142"]
[TimeControl "180+1"]
[WhiteFideId "25959026"]
[BlackFideId "4141989"]
[WhiteElo "2583"]
[BlackElo "2327"]
[WhiteTeam "IND"]
[BlackTeam "RUS"]
[WhiteClock "0:01:33"]
[BlackClock "0:00:00"]

1. Nf3 {[%clk 0:03:00]}  g6 {[%clk 0:03:00]} 2. g3 {[%clk 0:02:39]}  Bg7 {[%clk 0:03:00]} 3. Bg2 {[%clk 0:02:39]}  Nf6 {[%clk 0:02:59]} 4. O-O {[%clk 0:02:40]}  O-O {[%clk 0:02:59]} 5. d3 {[%clk 0:02:40]}  d6 {[%clk 0:03:00]} 6. Nbd2 {[%clk 0:02:40]}  c5 {[%clk 0:02:59]} 7. Re1 {[%clk 0:02:39]}  Nc6 {[%clk 0:02:59]} 8. c3 {[%clk 0:02:37]}  Rb8 {[%clk 0:02:59]} 9. e4 {[%clk 0:02:28]}  e5 {[%clk 0:02:45]} 10. Nc4 {[%clk 0:02:26]}  b5 {[%clk 0:02:40]} 11. Ne3 {[%clk 0:02:25]}  Be6 {[%clk 0:02:40]} 12. Ng5 {[%clk 0:02:23]}  h6 {[%clk 0:02:38]} 13. Nxe6 {[%clk 0:02:22]}  fxe6 {[%clk 0:02:38]} 14. Ng4 {[%clk 0:02:22]}  Nxg4 {[%clk 0:02:27]} 15. Qxg4 {[%clk 0:02:23]}  Qf6 {[%clk 0:02:27]} 16. f4 {[%clk 0:02:23]}  b4 {[%clk 0:02:07]} 17. Rf1 {[%clk 0:02:16]}  Rbe8 {[%clk 0:01:21]} 18. Bd2 {[%clk 0:02:11]}  h5 {[%clk 0:01:15]} 19. Qe2 {[%clk 0:02:04]}  Qe7 {[%clk 0:01:04]} 20. f5 {[%clk 0:01:58]}  exf5 {[%clk 0:00:28]} 21. exf5 {[%clk 0:01:59]}  e4 {[%clk 0:00:26]} 22. fxg6 {[%clk 0:01:51]}  Rxf1+ {[%clk 0:00:16]} 23. Rxf1 {[%clk 0:01:52]}  Qe5 {[%clk 0:00:13]} 24. Bxe4 {[%clk 0:01:47]}  bxc3 {[%clk 0:00:11]} 25. bxc3 {[%clk 0:01:40]}  Ne7 {[%clk 0:00:06]} 26. Bf4 {[%clk 0:01:34]}  Qxc3 {[%clk 0:00:00]} 27. Qxh5 {[%clk 0:01:33]} 1-0

[Event "January 2 Early 2024"]
[Site "https://www.chess.com"]
[Date "2024.01.02"]
[Round "7"]
[White "RaugintaBulba"]
[Black "Dahl, Trygve"]
[Result "1-0"]
[Board "144"]
[TimeControl "180+1"]
[BlackFideId "1513427"]
[WhiteElo "2538"]
[BlackElo "2327"]
[BlackTeam "NOR"]
[WhiteClock "0:02:15"]
[BlackClock "0:01:58"]

1. d4 {[%clk 0:03:00]}  Nf6 {[%clk 0:02:59]} 2. c4 {[%clk 0:03:00]}  e6 {[%clk 0:02:59]} 3. Nf3 {[%clk 0:03:00]}  Bb4+ {[%clk 0:02:59]} 4. Bd2 {[%clk 0:03:00]}  Qe7 {[%clk 0:02:53]} 5. g3 {[%clk 0:02:59]}  Ne4 {[%clk 0:02:53]} 6. Bg2 {[%clk 0:02:58]}  Bxd2+ {[%clk 0:02:53]} 7. Nfxd2 {[%clk 0:02:56]}  Nxd2 {[%clk 0:02:50]} 8. Qxd2 {[%clk 0:02:54]}  O-O {[%clk 0:02:51]} 9. O-O {[%clk 0:02:52]}  d6 {[%clk 0:02:51]} 10. Nc3 {[%clk 0:02:48]}  c5 {[%clk 0:02:44]} 11. Rad1 {[%clk 0:02:43]}  Nc6 {[%clk 0:02:43]} 12. d5 {[%clk 0:02:36]}  Ne5 {[%clk 0:02:38]} 13. b3 {[%clk 0:02:29]}  Rd8 {[%clk 0:02:31]} 14. dxe6 {[%clk 0:02:26]}  Bxe6 {[%clk 0:02:30]} 15. Nb5 {[%clk 0:02:20]}  Rd7 {[%clk 0:02:16]} 16. f4 {[%clk 0:02:16]}  Nc6 {[%clk 0:01:58]} 17. f5 {[%clk 0:02:15]} 1-0